bitfinex/quotes_SOLUSD_20250514
["timestamp","ask_amount","ask_price","bid_price","bid_amount"]
[1747188012689,6.61884598,182.81,182.78,8.46]
[1747188012883,5.47045951,182.8,182.78,8.46]
[1747188013300,5.47045951,182.8,182.76,34.35884598]
[1747188013519,12.08930549,182.8,182.76,27.74]
[1747188013713,19.1466083,182.8,182.76,27.74]
[1747188013912,25.76545428,182.8,182.76,27.74]
[1747188014218,6.61884598,182.79,182.76,27.74]
[1747188014588,25.76545428,182.8,182.76,27.74]
[1747188015425,6.61884598,182.79,182.76,27.74]
[1747188015890,19.1466083,182.8,182.76,27.74]
[1747188016096,6.61884598,182.79,182.76,27.74]
[1747188016603,5.47045951,182.8,182.76,34.35884598]
[1747188016799,5.47045951,182.8,182.77,6.61884598]
[1747188017120,6.61884598,182.82,182.77,6.61884598]
[1747188017310,6.61884598,182.82,182.76,34.35884598]
[1747188017933,6.61884598,182.82,182.77,6.61884598]
[1747188019194,5.47016027,182.81,182.77,6.61884598]
[1747188019924,12.08900625,182.81,182.76,60.35884598]
[1747188020121,12.08900625,182.81,182.76,53.74]
[1747188020430,12.08900625,182.81,182.76,60.35884598]
[1747188020922,6.61884598,182.8,182.76,27.74]
[1747188021314,6.61884598,182.78,182.76,27.74]
[1747188021516,6.61884598,182.77,182.76,27.74]
[1747188021707,5.47075879,182.79,182.76,27.74]
[1747188021898,6.61884598,182.78,182.76,27.74]
[1747188022432,5.47075879,182.79,182.76,27.74]
[1747188022726,6.61884598,182.78,182.76,27.74]
[1747188023924,5.47075879,182.79,182.76,27.74]
[1747188023925,6.61884598,182.79,182.76,27.74]
[1747188024111,5.47081903,182.79,182.76,34.35884598]
[1747188024729,5.47041465,182.81,182.78,6.61884598]
[1747188024906,6.61884598,182.85,182.8,6.61884598]
[1747188025103,5.4683655,182.87,182.82,6.61884598]
[1747188025325,5.4683655,182.87,182.83,6.61884598]
[1747188025628,5.46813937,182.88,182.84,6.61884598]
[1747188025838,12.08698535,182.88,182.83,6.61884598]
[1747188026212,6.61884598,182.87,182.81,0.28432314]
[1747188026403,12.08698535,182.88,182.83,6.61884598]
[1747188027615,12.08698535,182.88,182.81,0.28432314]
[1747188027944,5.46866455,182.86,182.81,6.61884598]
[1747188029518,5.46866455,182.86,182.82,6.61884598]
[1747188030531,13.66903068,182.9,182.8,26.0]
[1747188030532,5.46811875,182.88,182.84,6.61884598]
[1747188030916,12.08696473,182.88,182.83,6.61884598]
[1747188031833,12.08696473,182.88,182.81,0.28432314]
[1747188032017,19.13828497,182.88,182.81,33.95884598]
[1747188032225,6.61884598,182.85,182.81,27.34]
[1747188033442,6.61884598,182.83,182.78,1.5779]
[1747188034227,6.61884598,182.82,182.76,33.95884598]
[1747188034758,6.61884598,182.81,182.76,33.95884598]
[1747188035131,19.14241959,182.84,182.77,6.61884598]
[1747188035331,5.47016027,182.81,182.77,6.61884598]
[1747188035953,5.47016027,182.81,182.76,33.95884598]
[1747188036137,6.61884598,182.79,182.76,27.34]
[1747188037454,5.4710581,182.78,182.76,27.34]
[1747188038265,12.08990408,182.78,182.76,27.34]
[1747188040057,6.61884598,182.77,182.76,27.34]
[1747188041240,5.47135744,182.77,182.76,27.34]
[1747188041443,12.09020342,182.77,182.76,27.34]
[1747188042744,25.76859702,182.77,182.69,27.34]
[1747188042970,25.76859702,182.77,182.66,28.7487]
[1747188042971,6.61884598,182.7,182.66,1.5487]
[1747188043152,6.61884598,182.69,182.66,1.5487]
[1747188043356,12.0926809,182.69,182.65,53.34]
[1747188043550,12.0926809,182.69,182.64,211.33884598]
[1747188043551,6.61884598,182.67,182.64,204.72]
[1747188043764,6.61884598,182.65,182.62,27.34]
[1747188043951,6.61884598,182.64,182.62,55.02]
[1747188044155,19.1582183,182.69,182.6,8.51948632]
[1747188044156,6.61884598,182.63,182.6,8.51948632]
[1747188044362,6.61884598,182.61,182.6,8.51948632]
[1747188044664,13.23769196,182.61,182.6,8.51948632]
[1747188045041,39.23769196,182.61,182.6,8.51948632]
[1747188045240,52.76849564,182.61,182.6,8.51948632]
[1747188045484,52.76849564,182.61,182.57,34.0779453]
[1747188045671,10.64617214,182.59,182.57,34.0779453]
[1747188045848,42.1223235,182.61,182.57,34.0779453]
[1747188046382,5.47615136,182.61,182.53,27.34]
[1747188046539,10.64617214,182.58,182.53,27.34]
[1747188046745,10.64617214,182.57,182.53,27.34]
[1747188046969,5.47495209,182.65,182.56,10.64617214]
[1747188047173,5.47435265,182.67,182.59,10.64617214]
[1747188047379,5.47435265,182.67,182.61,26.0]
[1747188047558,16.12052479,182.67,182.61,36.64617214]
[1747188047760,5.47315417,182.71,182.61,36.64617214]
[1747188048081,5.47315417,182.71,182.62,10.64617214]
[1747188048258,10.64617214,182.67,182.61,10.64617214]
[1747188048462,10.64617214,182.65,182.6,36.64617214]
[1747188048679,10.64617214,182.67,182.6,26.0]
[1747188048971,10.64617214,182.63,182.58,26.0]
[1747188049179,5.47405298,182.68,182.58,36.64617214]
[1747188049389,5.47405298,182.68,182.6,10.64617214]
[1747188049673,10.64617214,182.65,182.61,26.0]
[1747188049855,5.47405298,182.68,182.59,10.64617214]
[1747188050062,10.64617214,182.65,182.59,10.64617214]
[1747188050577,5.47405298,182.68,182.61,10.64617214]
[1747188050771,10.64617214,182.66,182.61,10.64617214]
[1747188050972,16.12022512,182.68,182.63,10.64617214]
[1747188051179,31.47285464,182.72,182.64,10.64617214]
[1747188051476,10.64617214,182.68,182.61,27.36]
[1747188051669,5.47285464,182.72,182.63,10.64617214]
[1747188051872,10.64617214,182.67,182.62,10.64617214]
[1747188052267,10.64617214,182.64,182.61,27.36]
[1747188052468,10.64617214,182.63,182.61,27.36]
[1747188052855,10.64617214,182.64,182.61,27.36]
[1747188053475,19.15918545,182.68,182.61,38.00617214]
[1747188053673,10.64617214,182.67,182.61,38.00617214]
[1747188053884,10.64617214,182.66,182.61,38.00617214]
[1747188054577,19.15918545,182.68,182.61,38.00617214]
[1747188054759,10.64617214,182.69,182.64,10.64617214]
[1747188054953,26.0,182.71,182.66,10.64617214]
[1747188054954,5.47315417,182.71,182.66,10.64617214]
[1747188055151,16.11932631,182.71,182.66,10.64617214]
[1747188055355,10.64617214,182.74,182.69,10.64617214]
[1747188055568,5.4710581,182.78,182.72,10.64617214]
[1747188055855,10.64617214,182.81,182.75,10.64617214]
[1747188056160,16.1160332,182.82,182.76,10.64617214]
[1747188056573,5.46986106,182.82,182.72,26.0]
[1747188056878,10.64617214,182.82,182.77,10.64617214]
[1747188057077,5.46896363,182.85,182.77,10.64617214]
[1747188057281,10.64617214,182.84,182.74,0.42648471]
[1747188057452,10.64617214,182.84,182.78,10.64617214]
[1747188058284,10.64617214,182.82,182.77,10.64617214]
[1747188058579,19.1413727,182.85,182.76,10.64617214]
[1747188058780,13.67008655,182.89,182.81,10.64617214]
[1747188059059,13.67008655,182.89,182.79,26.0]
[1747188059060,5.46806649,182.88,182.83,10.64617214]
[1747188059272,10.64617214,182.87,182.82,10.64617214]
[1747188059483,5.46806649,182.88,182.85,10.64617214]
[1747188059653,13.66709824,182.93,182.82,26.0]
[1747188059654,5.46687076,182.92,182.82,26.0]
[1747188059862,10.64617214,182.91,182.85,10.64617214]
[1747188060362,5.46687076,182.92,182.88,10.64617214]
[1747188060575,5.46687076,182.92,182.89,10.64617214]
[1747188060782,24.31107432,182.96,182.91,10.64617214]
[1747188061159,10.64617214,182.95,182.87,26.0]
[1747188061361,10.64617214,182.95,182.9,10.64617214]
[1747188061575,10.64617214,182.95,182.87,26.0]
[1747188061576,5.46507815,182.98,182.94,10.64617214]
[1747188061770,5.46507815,182.98,182.89,26.0]
[1747188062083,16.11125029,182.98,182.93,10.64617214]
[1747188062291,10.64617214,182.97,182.92,10.64617214]
[1747188062658,5.46507815,182.98,182.94,10.64617214]
[1747188062863,19.12463799,183.01,182.89,26.0]
[1747188063199,19.12463799,183.01,183.0,10.64617214]
[1747188063200,5.46418228,183.01,183.0,10.64617214]
[1747188063498,8.49438895,183.06,183.0,10.64617214]
[1747188063690,8.49438895,183.06,183.04,10.64617214]
[1747188063873,8.49438895,183.06,182.99,0.14216157]
[1747188064077,8.49438895,183.06,183.04,10.64617214]
[1747188064323,13.95724419,183.06,182.98,26.0]
[1747188064605,10.64617214,183.04,182.99,37.68617214]
[1747188064770,10.64617214,183.02,182.99,27.04]
[1747188064975,10.64617214,183.0,182.99,27.04]
[1747188065188,10.64617214,183.02,182.99,27.04]
[1747188065479,19.12254821,183.03,182.99,27.04]
[1747188065682,5.4635852,183.03,182.99,27.04]
[1747188066186,10.64617214,183.0,182.99,27.04]
[1747188066584,10.64617214,183.01,182.99,27.04]
[1747188066789,16.11065301,183.0,182.99,27.04]
[1747188067295,5.46448087,183.0,182.99,27.04]
[1747188068045,16.11065301,183.0,182.99,27.04]
[1747188068183,16.11028208,183.02,182.99,27.04]
[1747188068497,10.64617214,183.01,182.99,27.04]
[1747188068909,13.65841138,183.04,182.99,27.04]
[1747188068910,16.11065301,183.0,182.99,27.04]
[1747188069077,5.46448087,183.0,182.99,27.04]
[1747188069279,16.11065301,183.0,182.99,27.04]
[1747188070093,16.11065301,183.0,182.94,36.64617214]
[1747188070295,16.11065301,183.0,182.82,10.64617214]
[1747188070296,0.28432314,182.94,182.82,10.64617214]
[1747188070482,10.64617214,182.93,182.88,10.64617214]
[1747188070913,10.64617214,182.91,182.86,27.02]
[1747188071118,10.64617214,182.9,182.86,27.02]
[1747188071481,5.46687076,182.92,182.86,27.02]
[1747188071687,10.64617214,182.9,182.86,53.02]
[1747188071883,10.64617214,182.89,182.86,27.02]
[1747188072197,10.64617214,182.88,182.86,27.02]
[1747188072393,19.13404766,182.92,182.86,27.02]
[1747188072394,10.64617214,182.87,182.86,27.02]
[1747188072986,16.11453764,182.87,182.86,27.02]
[1747188073204,5.4683655,182.87,182.86,27.02]
[1747188073398,16.11453764,182.87,182.86,27.02]
[1747188073781,5.4683655,182.87,182.86,27.02]
[1747188073981,16.11453764,182.87,182.86,27.02]
[1747188074597,29.7854514,182.87,182.79,27.02]
[1747188074806,10.64617214,182.8,182.79,27.02]
[1747188075007,5.47045951,182.8,182.79,27.02]
[1747188075311,5.46926274,182.84,182.79,27.02]
[1747188075555,10.64617214,182.8,182.72,26.94]
[1747188075720,10.64617214,182.75,182.71,34.931]
[1747188076221,10.64617214,182.78,182.73,10.64617214]
[1747188076523,19.14241959,182.84,182.71,34.931]
[1747188076524,10.64617214,182.75,182.71,34.931]
[1747188076809,10.64617214,182.75,182.71,28.6829]
[1747188076989,19.14903854,182.78,182.7,204.62]
[1747188077187,19.14903854,182.78,182.7,215.26617214]
[1747188077412,10.64617214,182.76,182.7,215.26617214]
[1747188077882,10.64617214,182.74,182.7,230.62]
[1747188078083,10.64617214,182.71,182.68,27.02]
[1747188078307,10.64617214,182.69,182.68,27.02]
[1747188078915,19.15248636,182.75,182.68,27.02]
[1747188079211,16.11812836,182.75,182.7,10.64617214]
[1747188079421,10.64617214,182.74,182.69,10.64617214]
[1747188079827,19.15184678,182.75,182.68,53.02]
[1747188080036,10.64617214,182.7,182.68,53.02]
[1747188080326,10.64617214,182.69,182.68,27.02]
[1747188080889,5.47405298,182.68,182.63,1.5976]
[1747188081092,10.64617214,182.67,182.64,26.0]
[1747188081292,10.64617214,182.65,182.61,27.02]
[1747188082099,10.64617214,182.64,182.61,27.02]
[1747188082519,0.14216157,182.67,182.61,27.02]
[1747188082734,10.64617214,182.65,182.61,27.02]
[1747188083229,10.64617214,182.62,182.53,27.02]
[1747188083532,10.64617214,182.62,182.45,214.02818446]
[1747188083533,26.0,182.58,182.57,8.47]
[1747188083696,26.28432314,182.58,182.57,6.44541258]
[1747188083891,36.93049528,182.58,182.43,30.32889982]
[1747188084102,10.64617214,182.5,182.43,27.04]
[1747188084317,26.42648471,182.58,182.45,30.0]
[1747188084638,0.14216157,182.57,182.45,40.64617214]
[1747188084926,0.28432314,182.56,182.45,30.0]
[1747188085103,0.42648471,182.59,182.43,27.04]
[1747188085310,0.42648471,182.59,182.46,26.0]
[1747188085539,0.14216157,182.59,182.44,10.0]
[1747188085696,5.47645125,182.6,182.54,36.64617214]
[1747188086001,5.4759489,182.62,182.58,10.64617214]
[1747188086198,5.4759489,182.62,182.55,26.0]
[1747188086393,5.47405298,182.68,182.59,10.64617214]
[1747188086631,10.64617214,182.66,182.55,26.0]
[1747188086844,10.64617214,182.66,182.6,10.64617214]
[1747188087007,5.47495209,182.65,182.6,10.64617214]
[1747188087216,5.47345374,182.7,182.55,29.28669569]
[1747188087530,5.47345374,182.7,182.65,15.70613144]
[1747188087730,5.47345374,182.7,182.66,15.70613144]
[1747188088244,15.70613144,182.7,182.63,26.0]
[1747188088405,15.70613144,182.68,182.63,41.70613144]
[1747188088602,19.15289481,182.74,182.63,41.70613144]
[1747188088828,19.15289481,182.74,182.61,56.76]
[1747188089036,15.70613144,182.65,182.61,30.76]
[1747188089345,5.47465235,182.66,182.54,34.33122893]
[1747188089653,5.47465235,182.66,182.62,15.70613144]
[1747188089947,21.18078379,182.66,182.57,26.0]
[1747188090240,15.70613144,182.63,182.57,15.70613144]
[1747188090396,19.16128324,182.66,182.57,15.70613144]
[1747188090622,19.16128324,182.66,182.59,15.70613144]
[1747188090802,5.47465235,182.66,182.6,15.70613144]
[1747188091110,21.17958518,182.7,182.65,15.70613144]
[1747188091311,5.47345374,182.7,182.67,15.70613144]
[1747188091617,5.47255513,182.73,182.68,15.70613144]
[1747188091799,5.47255513,182.73,182.64,0.42648471]
[1747188092005,21.17868657,182.73,182.67,15.70613144]
[1747188092408,21.17868657,182.73,182.68,15.70613144]
[1747188093237,5.47255513,182.73,182.69,15.70613144]
[1747188093832,5.47255513,182.73,182.66,26.0]
[1747188093833,5.47255513,182.73,182.7,15.70613144]
[1747188094031,5.47225302,182.75,182.72,15.70613144]
[1747188094234,5.47225302,182.75,182.73,15.70613144]
[1747188094410,5.4710581,182.78,182.74,15.70613144]
[1747188094940,5.4710581,182.78,182.73,15.70613144]
[1747188095121,5.4710581,182.78,182.68,0.42648471]
[1747188095122,5.4710581,182.78,182.74,15.70613144]
[1747188095530,5.47016027,182.81,182.74,15.70613144]
[1747188095712,5.47016027,182.81,182.78,15.70613144]
[1747188096032,5.47016027,182.81,182.77,15.70613144]
[1747188096742,5.47016027,182.81,182.72,30.76]
[1747188096743,45.14556095,182.81,182.72,46.46613144]
[1747188096946,15.70613144,182.77,182.72,30.76]
[1747188097236,15.70613144,182.74,182.72,30.76]
[1747188097417,15.70613144,182.74,182.68,15.70613144]
[1747188097809,19.15079885,182.76,182.72,15.70613144]
[1747188098143,19.15079885,182.76,182.66,15.70613144]
[1747188098312,15.70613144,182.72,182.66,15.70613144]
[1747188098516,15.70613144,182.72,182.67,15.70613144]
[1747188098716,15.70613144,182.72,182.65,30.76]
[1747188099040,46.50908293,182.76,182.67,15.70613144]
[1747188099215,15.70613144,182.72,182.67,15.70613144]
[1747188099413,46.50908293,182.76,182.67,15.70613144]
[1747188099627,15.70613144,182.73,182.67,15.70613144]
[1747188100039,46.50908293,182.76,182.68,15.70613144]
[1747188100245,15.70613144,182.73,182.68,15.70613144]
[1747188100540,15.70613144,182.72,182.67,15.70613144]
[1747188100714,15.70613144,182.71,182.66,15.70613144]
[1747188101037,46.50908293,182.76,182.65,30.76]
[1747188101038,15.70613144,182.72,182.65,30.76]
[1747188101220,5.47315417,182.71,182.65,30.76]
[1747188101417,5.47315417,182.71,182.66,15.70613144]
[1747188101604,5.47315417,182.71,182.67,15.70613144]
[1747188102123,5.47315417,182.71,182.66,15.70613144]
[1747188102329,15.70613144,182.7,182.65,30.76]
[1747188102635,19.15603961,182.71,182.66,15.70613144]
[1747188102831,5.47315417,182.71,182.69,15.70613144]
[1747188103005,5.47315417,182.71,182.7,15.70613144]
[1747188103213,13.67864189,182.77,182.7,15.70613144]
[1747188103419,13.67864189,182.77,182.73,15.70613144]
[1747188103735,5.47165681,182.76,182.73,15.70613144]
[1747188103936,5.47165681,182.76,182.72,15.70613144]
[1747188104117,5.47165681,182.76,182.74,15.70613144]
[1747188104317,5.47075879,182.79,182.75,15.70613144]
[1747188104512,5.47075879,182.79,182.71,26.28432314]
[1747188104740,5.47075879,182.79,182.75,15.70613144]
[1747188104741,19.14765577,182.79,182.75,15.70613144]
[1747188105045,19.14765577,182.79,182.73,15.70613144]
[1747188105225,19.14975104,182.77,182.73,15.70613144]
[1747188105427,19.14975104,182.77,182.74,15.70613144]
[1747188105621,19.14975104,182.77,182.71,26.0]
[1747188105831,19.14975104,182.77,182.73,15.70613144]
[1747188106814,5.46896363,182.85,182.76,15.70613144]
[1747188107019,5.46896363,182.85,182.74,26.0]
[1747188107020,5.46896363,182.85,182.81,15.70613144]
[1747188107328,19.14038417,182.86,182.82,15.70613144]
[1747188107532,5.46866455,182.86,182.84,15.70613144]
[1747188108022,5.46866455,182.86,182.8,0.42648471]
[1747188108223,5.46866455,182.86,182.85,15.70613144]
[1747188108531,5.46866455,182.86,182.84,15.70613144]
[1747188108952,13.66731129,182.92,182.81,26.0]
[1747188109121,15.70613144,182.9,182.85,15.70613144]
[1747188109456,5.46776751,182.89,182.86,15.70613144]
[1747188109665,5.46776751,182.89,182.87,15.70613144]
[1747188109864,5.46776751,182.89,182.88,15.70613144]
[1747188110022,5.46657191,182.93,182.88,15.70613144]
[1747188110219,5.46657191,182.93,182.89,15.70613144]
[1747188110854,19.13300169,182.93,182.88,15.70613144]
[1747188111526,19.13300169,182.93,182.9,15.70613144]
[1747188112952,5.46657191,182.93,182.92,15.70613144]
[1747188113826,5.46567555,182.96,182.92,15.70613144]
[1747188114030,5.46567555,182.96,182.93,15.70613144]
[1747188114548,5.46567555,182.96,182.92,15.70613144]
[1747188114725,5.46567555,182.96,182.92,17.61310312]
[1747188114928,5.46567555,182.96,182.89,26.0]
[1747188115129,5.46567555,182.96,182.91,17.61310312]
[1747188115554,19.12986444,182.96,182.91,17.61310312]
[1747188115752,19.12986444,182.96,182.92,17.61310312]
[1747188118235,36.74296756,182.96,182.88,0.42648471]
[1747188118571,36.74296756,182.96,182.91,17.61310312]
[1747188118747,19.12986444,182.96,182.91,17.61310312]
[1747188118938,36.74296756,182.96,182.91,17.61310312]
[1747188119338,11.92403278,182.94,182.89,11.92403278]
[1747188119553,19.12986444,182.96,182.91,11.92403278]
[1747188119869,5.46418228,183.01,182.95,11.92403278]
[1747188120050,5.46418228,183.01,182.93,29.9]
[1747188120377,11.92403278,183.01,182.96,11.92403278]
[1747188120545,11.92403278,183.0,182.94,11.92403278]
[1747188120743,11.92403278,183.01,182.95,11.92403278]
[1747188121150,11.92403278,183.0,182.93,29.9]
[1747188121357,11.92403278,183.0,182.94,11.92403278]
[1747188121561,11.92403278,182.99,182.94,11.92403278]
[1747188121862,72.43683648,183.05,182.93,29.9]
[1747188121863,11.92403278,183.03,182.97,11.92403278]
[1747188122050,11.92403278,183.04,182.98,11.92403278]
[1747188122439,19.12254821,183.03,182.99,11.92403278]
[1747188122747,17.38761798,183.03,182.96,1.5163]
[1747188122948,11.92403278,183.0,182.93,55.9]
[1747188123254,11.92403278,183.0,182.95,11.92403278]
[1747188123455,19.12254821,183.03,182.95,11.92403278]
[1747188123659,11.92403278,183.01,182.93,55.9]
[1747188123862,11.92403278,183.0,182.93,55.9]
[1747188124050,11.92403278,182.98,182.93,55.9]
[1747188124251,11.92403278,182.97,182.93,29.9]
[1747188124464,5.4659743,182.95,182.93,29.9]
[1747188125357,17.39000708,182.95,182.93,29.9]
[1747188125767,5.4659743,182.95,182.93,29.9]
[1747188126054,17.39000708,182.95,182.93,29.9]
[1747188126249,11.92403278,182.94,182.93,29.9]
[1747188126471,5.46657191,182.93,182.86,43.41743278]
[1747188126653,11.92403278,182.92,182.86,41.80403278]
[1747188126853,31.05703447,182.93,182.88,11.92403278]
[1747188127052,19.13300169,182.93,182.88,11.92403278]
[1747188127255,5.46657191,182.93,182.89,11.92403278]
[1747188127674,17.39060469,182.93,182.88,11.92403278]
[1747188128344,11.92403278,182.92,182.86,41.80403278]
[1747188128552,19.13509375,182.91,182.86,29.88]
[1747188128771,11.92403278,182.87,182.81,11.92403278]
[1747188128947,11.92403278,182.85,182.8,11.92403278]
[1747188129147,11.92403278,182.85,182.79,29.88]
[1747188129345,11.92403278,182.85,182.79,41.80403278]
[1747188129577,11.92403278,182.84,182.79,29.88]
[1747188129751,11.92403278,182.82,182.79,29.88]
[1747188129943,11.92403278,182.8,182.79,29.88]
[1747188130376,11.92403278,182.8,182.72,31.5087]
[1747188130547,11.92403278,182.77,182.72,43.43273278]
[1747188130743,11.92403278,182.77,182.72,29.88]
[1747188130968,11.92403278,182.75,182.72,29.88]
[1747188131172,5.47075879,182.79,182.72,41.80403278]
[1747188131361,11.92403278,182.78,182.72,29.88]
[1747188131561,11.92403278,182.77,182.72,29.88]
[1747188131758,11.92403278,182.73,182.72,29.88]
[1747188131992,11.92403278,182.73,182.67,204.6]
[1747188132168,11.92403278,182.72,182.67,204.6]
[1747188132373,11.92403278,182.72,182.67,216.52403278]
[1747188132594,11.92403278,182.7,182.67,204.6]
[1747188132784,5.47165681,182.76,182.67,204.6]
[1747188132988,11.92403278,182.72,182.67,216.52403278]
[1747188133174,0.28432314,182.75,182.65,67.82403278]
[1747188133370,17.66550787,182.68,182.65,29.9]
[1747188133588,17.66550787,182.67,182.65,29.9]
[1747188134087,26.14216157,182.75,182.66,17.66550787]
[1747188134399,17.66550787,182.73,182.68,17.66550787]
[1747188134579,5.47197221,182.75,182.69,17.66550787]
[1747188134780,17.66550787,182.73,182.66,26.0]
[1747188135086,17.66550787,182.67,182.65,29.9]
[1747188135292,0.14216157,182.71,182.65,29.9]
[1747188135472,17.66550787,182.67,182.65,29.9]
[1747188135667,17.66550787,182.67,182.62,17.03897265]
[1747188135874,17.66550787,182.65,182.63,27.75]
[1747188136183,17.66550787,182.64,182.63,27.75]
[1747188136699,23.14075973,182.64,182.62,17.03897265]
[1747188136904,17.66550787,182.63,182.62,17.03897265]
[1747188137077,5.47525186,182.64,182.62,17.03897265]
[1747188137274,17.66550787,182.63,182.62,17.03897265]
[1747188137480,35.75750045,182.63,182.62,17.03897265]
[1747188137782,61.75750045,182.63,182.62,17.03897265]
[1747188138200,44.09199258,182.63,182.62,17.03897265]
[1747188138401,35.75750045,182.63,182.62,17.03897265]
[1747188138699,41.23305211,182.63,182.62,15.37587265]
[1747188139401,41.23305211,182.63,182.54,34.0779453]
[1747188139402,0.42648471,182.59,182.54,34.0779453]
[1747188139602,17.66550787,182.55,182.47,51.11691795]
[1747188139916,26.0,182.52,182.47,51.11691795]
[1747188140116,26.0,182.46,182.32,1.6665]
[1747188140275,26.0,182.44,182.38,27.79]
[1747188140477,36.85094885,182.43,182.38,27.79]
[1747188140676,26.0,182.4,182.38,27.79]
[1747188140883,17.66550787,182.39,182.29,6.6343]
[1747188141105,19.18544098,182.43,182.29,6.6343]
[1747188141311,17.66550787,182.37,182.29,6.6343]
[1747188141488,0.14216157,182.41,182.36,31.58286386]
[1747188141686,0.14216157,182.41,182.36,8.95286386]
[1747188141995,0.42648471,182.42,182.36,8.95286386]
[1747188142194,17.66550787,182.37,182.36,8.95286386]
[1747188142404,26.0,182.4,182.36,8.95286386]
[1747188142700,5.48275673,182.39,182.36,8.95286386]
[1747188143238,5.48155456,182.43,182.36,26.61837173]
[1747188143416,5.48155456,182.43,182.36,8.95286386]
[1747188144482,17.66550787,182.4,182.36,8.95286386]
[1747188144803,19.18228652,182.46,182.36,8.95286386]
[1747188144804,43.66550787,182.43,182.36,8.95286386]
[1747188145009,0.42648471,182.42,182.36,8.95286386]
[1747188145299,17.66550787,182.37,182.36,8.95286386]
[1747188145500,0.42648471,182.42,182.36,8.95286386]
[1747188145713,17.66550787,182.37,182.36,8.95286386]
[1747188145885,43.66550787,182.43,182.36,8.95286386]
[1747188146083,26.0,182.43,182.36,8.95286386]
[1747188146277,17.66550787,182.39,182.36,8.95286386]
[1747188146521,46.57322925,182.51,182.37,17.66550787]
[1747188146682,46.57322925,182.51,182.4,17.66550787]
[1747188146885,46.57322925,182.51,182.36,12.24302436]
[1747188147103,46.57322925,182.51,182.44,17.66550787]
[1747188147104,5.47915182,182.51,182.44,17.66550787]
[1747188147337,23.14465969,182.51,182.45,17.66550787]
[1747188147511,5.47915182,182.51,182.42,17.66550787]
[1747188147704,5.47915182,182.51,182.41,26.0]
[1747188148013,17.66550787,182.49,182.41,26.0]
[1747188148200,33.52873847,182.57,182.43,17.66550787]
[1747188148401,5.47645125,182.6,182.46,17.66550787]
[1747188148605,19.16757939,182.6,182.48,17.66550787]
[1747188148810,17.66550787,182.53,182.48,17.66550787]
[1747188149227,26.0,182.57,182.48,17.66550787]
[1747188149530,0.42648471,182.59,182.44,26.0]
[1747188149723,19.16757939,182.6,182.44,26.0]
[1747188149932,17.66550787,182.54,182.44,26.0]
[1747188150104,17.66550787,182.53,182.48,17.66550787]
[1747188150305,17.66550787,182.61,182.44,26.0]
[1747188150306,17.66550787,182.49,182.44,43.66550787]
[1747188150613,5.47885163,182.52,182.47,17.66550787]
[1747188150801,23.1443595,182.52,182.47,17.66550787]
[1747188151002,17.66550787,182.51,182.44,26.0]
[1747188151201,17.66550787,182.49,182.44,43.66550787]
[1747188151410,17.66550787,182.5,182.44,26.0]
[1747188151612,17.66550787,182.5,182.44,43.66550787]
[1747188151836,5.47885163,182.52,182.44,17.66550787]
[1747188152005,17.66550787,182.5,182.44,17.66550787]
[1747188152204,17.66550787,182.53,182.47,17.66550787]
[1747188152432,5.47795124,182.55,182.51,17.66550787]
[1747188152736,5.47795124,182.55,182.5,17.66550787]
[1747188153100,9.2985374,182.64,182.52,17.66550787]
[1747188153101,23.1431464,182.57,182.52,17.66550787]
[1747188153407,5.47763853,182.57,182.44,0.42648471]
[1747188153610,17.66550787,182.53,182.48,17.66550787]
[1747188153837,17.66550787,182.51,182.43,6.2913]
[1747188154006,17.66550787,182.51,182.46,17.66550787]
[1747188154208,5.47945205,182.5,182.46,17.66550787]
[1747188154700,5.47945205,182.5,182.45,17.66550787]
[1747188155328,23.14495992,182.5,182.45,17.66550787]
[1747188155505,26.0,182.57,182.48,17.66550787]
[1747188155506,5.4790774,182.52,182.48,17.66550787]
[1747188155704,17.66550787,182.56,182.5,17.66550787]
[1747188155924,17.66550787,182.56,182.51,17.66550787]
[1747188156130,17.66550787,182.54,182.44,0.42648471]
[1747188156320,27.6672841,182.6,182.47,17.66550787]
[1747188156321,5.47885163,182.52,182.47,17.66550787]
[1747188156520,5.47885163,182.52,182.48,17.66550787]
[1747188156826,5.47885163,182.52,182.49,17.66550787]
[1747188157310,17.66550787,182.54,182.49,17.66550787]
[1747188157518,17.66550787,182.54,182.46,26.0]
[1747188157723,17.66550787,182.54,182.48,17.66550787]
[1747188157925,17.66550787,182.55,182.46,26.0]
[1747188158278,17.66550787,182.54,182.49,17.66550787]
[1747188158407,5.47855147,182.53,182.49,17.66550787]
[1747188158734,5.47855147,182.53,182.5,17.66550787]